bitfinex-derivatives/quotes_SOLF0:USTF0_20251006
["timestamp","ask_amount","ask_price","bid_price","bid_amount"]
[1759777875327,1.92753023,236.14,236.05,11.19314338]
[1759777875521,104.58,236.13,236.05,7.65]
[1759777876734,4.86813144,236.12,236.05,11.4604]
[1759777877928,1.05873144,236.12,236.05,11.4604]
[1759777878232,104.58,236.13,236.05,11.4604]
[1759777879733,5.73653023,236.14,236.05,11.4604]
[1759777879933,104.6,236.13,236.05,11.4604]
[1759777881032,1.05873762,236.12,236.05,11.4604]
[1759777882138,108.4093,236.13,236.05,11.4604]
[1759777882939,5.73693023,236.11,236.05,11.4604]
[1759777883531,1.05878141,236.12,236.05,11.4604]
[1759777883736,1.92753023,236.11,236.05,11.4604]
[1759777884235,104.6,236.1,235.99,3.54314338]
[1759777884532,1.92753023,236.05,236.0,7.28]
[1759777884738,104.6,236.04,236.0,7.28]
[1759777884938,104.6,236.04,235.98,3.8114]
[1759777885127,106.52753023,236.05,235.99,7.28]
[1759777888143,1.92753023,236.05,235.99,7.28]
[1759777888539,23.82753023,236.05,235.99,7.28]
[1759777888839,44.62753023,236.05,235.99,7.28]
[1759777889438,1.92753023,236.05,235.99,7.28]
[1759777889638,61.98,236.05,235.99,7.28]
[1759777889936,3.8098,236.1,235.99,7.28]
[1759777890142,41.12,236.09,235.99,7.28]
[1759777890435,71.02,236.08,235.99,7.28]
[1759777890643,71.02,236.08,236.02,3.8109]
[1759777891339,1.92753023,236.1,236.02,3.8109]
[1759777891539,98.28,236.09,236.02,3.8109]
[1759777891739,98.28,236.09,236.02,11.0909]
[1759777892039,104.6,236.08,236.02,11.0909]
[1759777894042,104.6,236.08,236.03,3.8106]
[1759777894343,104.6,236.08,236.04,7.28]
[1759777894642,3.8094,236.12,236.04,3.8104]
[1759777894839,104.6,236.11,236.04,3.8104]
[1759777895344,5.73693023,236.12,236.04,3.8104]
[1759777895539,90.72,236.11,236.04,3.8104]
[1759777896942,94.5296,236.11,236.03,7.28]
[1759777897940,104.6,236.1,236.03,7.28]
[1759777898140,104.6,236.1,236.04,3.8106]
[1759777899048,1.92753023,236.19,236.06,1.92753023]
[1759777899241,58.8,236.18,236.07,7.68]
[1759777899443,1.05870536,236.17,236.1,3.8096]
[1759777899643,62.6085,236.18,236.1,11.4896]
[1759777899843,58.8,236.18,236.1,7.68]
[1759777900147,58.8,236.18,236.12,3.8093]
[1759777901241,104.58,236.17,236.12,3.8093]
[1759777902046,104.58,236.17,236.12,11.4893]
[1759777902644,104.58,236.17,236.13,7.68]
[1759777903449,312.0676,236.23,236.14,3.8089]
[1759777903645,104.58,236.22,236.14,3.8089]
[1759777903845,106.50753023,236.22,236.14,3.8089]
[1759777904745,3.8078,236.21,236.14,3.8089]
[1759777905158,3.8078,236.21,236.13,7.68]
[1759777906546,3.01175092,236.21,236.08,11.4898]
[1759777906752,104.56,236.2,236.08,11.4898]
[1759777907146,104.56,236.2,236.03,59.2777]
[1759777907147,3.01175092,236.17,236.02,7.68]
[1759777907353,1.05866748,236.17,236.02,7.68]
[1759777907553,94.16,236.16,236.02,7.68]
[1759777908055,97.9687,236.16,236.07,3.8099]
[1759777908349,104.56,236.15,236.06,7.6]
[1759777908749,104.56,236.15,236.09,3.8098]
[1759777909554,104.56,236.15,236.06,11.4102]
[1759777909749,104.56,236.15,236.06,3.8102]
[1759777910152,3.8092,236.13,236.03,3.8106]
[1759777910360,3.8092,236.13,236.02,7.6]
[1759777911552,3.8092,236.13,236.04,3.8104]
[1759777913555,3.8092,236.13,236.04,11.4104]
[1759777914256,3.8092,236.13,236.06,3.8102]
[1759777915359,3.01175092,236.16,236.08,7.6]
[1759777915560,72.28,236.15,236.08,7.6]
[1759777916263,72.28,236.15,236.09,3.8096]
[1759777916556,104.54,236.16,236.09,3.8096]
[1759777917357,104.54,236.16,236.08,7.6]
[1759777917358,104.54,236.16,236.11,3.8094]
[1759777917560,107.55175092,236.16,236.04,7.6]
[1759777917861,104.54,236.16,236.04,7.6]
[1759777918660,104.54,236.16,236.03,62.82084338]
[1759777918661,104.54,236.16,236.06,7.6]
[1759777919059,104.54,236.16,236.07,3.81]
[1759777920362,3.809,236.15,236.07,3.81]
[1759777920957,107.55175092,236.16,236.05,3.8104]
[1759777921154,1.05872921,236.15,236.05,3.8104]
[1759777921556,1.05872921,236.15,236.02,7.6]
[1759777921557,3.8093,236.12,236.03,3.8107]
[1759777921761,1.05872921,236.15,236.03,3.8107]
[1759777922160,1.05872921,236.15,236.02,7.6]
[1759777923053,108.3491,236.14,236.04,3.8105]
[1759777923253,104.54,236.14,236.04,3.8105]
[1759777923758,104.54,236.14,236.02,7.6]
[1759777924365,3.8094,236.12,236.05,3.8103]
[1759777924663,104.54,236.14,236.02,7.6]
[1759777924865,1.0587985,236.13,236.02,7.6]
[1759777925567,3.8097,236.1,236.02,11.4108]
[1759777925760,1.0587985,236.13,236.02,7.6]
[1759777925761,3.01175092,236.12,236.02,7.6]
[1759777926658,3.8098,236.09,236.02,7.6]
[1759777926860,3.01175092,236.16,236.02,7.6]
[1759777927057,3.8091,236.14,236.04,3.8105]
[1759777927268,1.05884412,236.14,236.0,14.96754338]
[1759777927466,1.05884412,236.14,236.01,7.6]
[1759777927863,3.8093,236.12,236.03,3.8107]
[1759777928063,104.52,236.11,236.01,7.6]
[1759777928865,3.8093,236.12,236.01,7.6]
[1759777929067,104.52,236.11,236.01,7.6]
[1759777929570,104.52,236.11,236.04,3.8104]
[1759777932173,104.52,236.11,236.01,3.8109]
[1759777932365,1.058907,236.1,236.01,3.8109]
[1759777932967,1.058907,236.1,236.01,11.4109]
[1759777933170,1.058907,236.1,236.01,7.6]
[1759777933467,108.3295,236.11,236.01,7.6]
[1759777934568,108.3295,236.11,236.03,3.8106]
[1759777935065,4.71602074,236.18,236.07,3.81]
[1759777935275,104.52,236.17,236.08,7.6]
[1759777935469,3.8088,236.15,236.08,7.6]
[1759777936172,1.05873735,236.16,236.08,11.4098]
[1759777936671,1.05873735,236.16,236.08,7.6]
[1759777936867,3.8088,236.15,236.08,7.6]
[1759777938276,3.01175092,236.15,236.03,7.75]
[1759777938575,3.01175092,236.11,236.03,7.75]
[1759777939273,6.82135092,236.11,236.03,7.75]
[1759777939476,104.52,236.13,236.03,7.75]
[1759777940564,105.25737406,236.13,236.04,3.8104]
[1759777941677,3.8094,236.12,236.04,3.8104]
[1759777941971,3.8094,236.12,236.03,7.75]
[1759777942176,3.8094,236.12,236.05,3.8103]
[1759777942373,3.8094,236.12,236.06,7.75]
[1759777943581,3.8094,236.12,236.06,11.5601]
[1759777943772,90.63737406,236.13,236.07,7.75]
[1759777944078,0.73737406,236.13,236.07,7.75]
[1759777944571,0.73737406,236.13,236.08,3.8098]
[1759777945276,0.73737406,236.13,236.09,7.75]
[1759777945678,0.73737406,236.13,236.08,3.8098]
[1759777946377,0.73737406,236.13,236.09,7.75]
[1759777946774,0.73737406,236.13,236.08,3.8098]
[1759777946975,0.73737406,236.13,236.03,3.54314338]
[1759777947174,0.73737406,236.13,236.04,7.75]
[1759777948083,0.73737406,236.13,236.06,3.8101]
[1759777948576,3.8094,236.12,236.04,11.5605]
[1759777949079,0.73737406,236.13,236.04,11.5605]
[1759777949080,3.8097,236.1,236.04,11.5605]
[1759777949285,3.8097,236.1,236.04,7.75]
[1759777949483,59.2589,236.11,236.0,22.71754338]
[1759777949682,1.05866759,236.1,236.0,22.71754338]
[1759777950985,3.8107,236.04,236.0,7.75]
[1759777951873,3.8109,236.02,235.96,7.75]
[1759777952278,104.5,236.05,235.96,7.75]
[1759777952480,104.5,236.05,235.97,3.8117]
[1759777952977,108.3106,236.05,235.97,3.8117]
[1759777953173,104.5,236.05,235.96,7.75]
[1759777953581,3.8107,236.04,235.96,7.75]
[1759777953985,104.5,236.05,235.96,7.75]
[1759777954474,104.5,236.05,235.99,7.75]
[1759777955278,104.5,236.04,235.99,3.8112]
[1759777955486,3.8104,236.06,235.99,3.8112]
[1759777955786,70.46,236.05,235.99,11.5612]
[1759777958686,23.59903255,236.44,235.93,62.84614338]
[1759777958687,104.5,236.07,236.02,7.67]
[1759777958886,104.5,236.07,235.98,7.67]
[1759777959287,104.5,236.07,236.03,3.8106]
[1759777959490,104.5,236.07,236.0,7.67]
[1759777960187,104.5,236.07,236.04,3.8105]
[1759777960388,104.5,236.07,236.05,7.67]
[1759777961088,104.5,236.07,236.01,3.811]
[1759777961283,104.5,236.07,236.01,11.481]
[1759777961680,104.5,236.07,236.03,7.67]
[1759777962190,104.5,236.07,236.02,3.8108]
[1759777962584,104.5,236.07,236.03,7.67]
[1759777963585,104.5,236.07,236.02,3.8108]
[1759777963784,104.5,236.07,236.02,11.4808]
[1759777964185,104.5,236.07,236.03,7.67]
[1759777965180,104.5,236.07,236.04,11.4806]
[1759777965586,104.5,236.07,236.04,3.8106]
[1759777965783,104.5,236.07,236.04,11.4806]
[1759777966792,104.5,236.07,236.04,3.8106]
[1759777966988,104.5,236.07,236.04,11.4806]
[1759777971297,104.5,236.07,236.04,3.8106]
[1759777971496,104.5,236.07,236.02,11.0908]
[1759777972184,108.3101,236.07,236.0,3.8112]
[1759777972390,104.5,236.07,235.98,7.28]
[1759777973095,104.5,236.07,236.02,3.8108]
[1759777973295,104.5,236.07,236.0,7.28]
[1759777974498,104.5,236.07,236.05,3.8103]
[1759777974792,104.5,236.07,236.05,11.0903]
[1759777975300,1.92926481,236.11,236.05,3.8103]
[1759777975597,2.98814785,236.11,236.05,3.8103]
[1759777975796,3.8097,236.1,236.05,3.8103]
[1759777977492,1.92926481,236.08,236.03,3.8107]
[1759777977793,1.92926481,236.08,236.0,7.28]
[1759777978297,1.92926481,236.08,236.03,3.8106]
[1759777980696,2.98814785,236.11,236.04,3.8105]
[1759777980901,1.05888304,236.11,236.04,7.28]
[1759777981401,104.46,236.12,236.09,7.28]
[1759777981999,0.73737406,236.13,236.09,7.28]
[1759777982201,0.73737406,236.13,236.1,7.28]
[1759777982402,1.92926481,236.16,236.05,7.28]
[1759777982602,3.72516105,236.16,236.05,7.28]
[1759777982798,3.72516105,236.16,236.1,3.8095]
[1759777983501,2.66649828,236.16,236.1,3.8095]
[1759777983700,3.72516105,236.16,236.1,3.8095]
[1759777983904,1.79589624,236.16,236.07,3.8099]
[1759777984205,1.92926481,236.14,236.07,3.8099]
[1759777986502,5.73826481,236.14,236.07,3.8099]
[1759777986708,1.92926481,236.11,236.05,3.8104]
[1759777987100,1.92926481,236.11,236.02,3.8108]
[1759777987807,1.92926481,236.11,236.03,3.8106]
[1759777988002,1.92926481,236.08,236.01,7.28]
[1759777988305,1.92926481,236.08,236.02,3.8109]
[1759777993013,5.73916481,236.08,236.01,7.28]
[1759777994910,1.92926481,236.08,236.01,7.28]
[1759777996215,1.92926481,236.08,236.02,3.8109]
[1759777996616,1.92926481,236.08,236.03,3.8106]
[1759777996917,1.92926481,236.08,236.04,7.28]
[1759777997114,1.92926481,236.11,236.03,3.8106]
[1759777997305,1.92926481,236.11,236.04,7.28]
[1759777997510,2.98819177,236.11,236.04,7.28]
[1759777998713,2.98819177,236.11,236.05,3.8103]
[1759777998914,2.98819177,236.11,236.04,7.28]
[1759777999113,1.92926481,236.11,236.04,7.28]
[1759777999819,1.92926481,236.11,236.08,7.51]
[1759778000614,88.04,236.12,236.09,7.51]
[1759778001112,1.92926481,236.14,236.02,5.47816525]
[1759778001318,2.98800293,236.14,236.08,3.8099]
[1759778002113,2.98800293,236.14,236.09,7.51]
[1759778002315,2.98800293,236.14,236.08,11.3199]
[1759778002716,2.98800293,236.14,236.09,3.8096]
[1759778003420,2.98800293,236.14,236.1,7.51]
[1759778003617,1.05873812,236.14,236.11,7.51]
[1759778003918,1.92926481,236.21,236.1,7.51]
[1759778004118,2.98777494,236.21,236.1,7.51]
[1759778004519,2.98777494,236.21,236.11,7.51]
[1759778005524,3.7248991,236.21,236.11,7.51]
[1759778005826,3.7248991,236.21,236.15,11.3188]
[1759778006118,1.79563429,236.21,236.15,11.3188]
[1759778006324,1.92926481,236.2,236.15,3.8088]
[1759778006521,0.73712416,236.21,236.17,7.51]
[1759778006719,0.73712416,236.21,236.16,3.8085]
[1759778007121,0.73712416,236.21,236.17,7.51]
[1759778007522,0.73712416,236.21,236.16,3.8085]
[1759778007721,0.73712416,236.21,236.17,7.51]
[1759778008222,0.73712416,236.21,236.16,3.8085]
[1759778008418,0.73712416,236.21,236.17,7.51]
[1759778008723,0.73712416,236.21,236.16,3.8085]
[1759778009028,0.73712416,236.21,236.17,7.51]
[1759778010125,4.54492416,236.21,236.13,11.319]
[1759778010330,1.92926481,236.19,236.13,11.319]
[1759778012626,0.73712416,236.21,236.09,66.7733]
[1759778012923,1.92926481,236.28,236.17,1.92926481]
[1759778013128,106.26926481,236.28,236.18,7.51]
[1759778013430,107.00617824,236.28,236.21,7.51]
[1759778014129,105.07691343,236.28,236.22,3.8077]
[1759778014332,10.69164601,236.32,236.21,7.51]
[1759778015126,10.69164601,236.32,236.26,11.317]
[1759778016534,10.69164601,236.32,236.26,7.51]
[1759778018929,10.69164601,236.32,236.24,3.8073]
[1759778018930,1.92926481,236.31,236.18,7.45]
[1759778019128,36.42,236.3,236.22,7.45]
[1759778020535,36.42,236.3,236.26,3.807]
[1759778021035,36.42,236.3,236.27,7.45]
[1759778021230,36.42,236.3,236.26,3.807]
[1759778021536,0.73677302,236.33,236.29,7.45]
[1759778021730,0.73677302,236.33,236.24,7.45]
[1759778021926,0.73677302,236.33,236.28,7.45]
[1759778022327,0.73677302,236.33,236.27,11.2569]
[1759778023339,1.92926481,236.34,236.28,3.8065]
[1759778024438,1.92926481,236.34,236.27,7.45]
[1759778026939,64.12592865,236.36,236.28,3.8067]
[1759778027139,62.19666384,236.36,236.29,7.45]
[1759778028531,66.00206384,236.36,236.29,7.45]
[1759778029938,62.19666384,236.36,236.3,3.8064]
[1759778031044,62.19666384,236.36,236.32,7.42]
[1759778031239,311.28783413,236.39,236.32,7.42]
[1759778031434,104.24,236.38,236.32,7.42]
[1759778032141,311.28783413,236.39,236.32,7.42]
[1759778032334,104.24,236.38,236.32,7.42]
[1759778032541,308.28,236.39,236.33,3.8059]
[1759778032740,412.52,236.39,236.33,3.8059]
[1759778033743,412.52,236.39,236.32,7.42]
[1759778033948,416.3251,236.39,236.32,7.42]
[1759778036046,412.52,236.39,236.32,7.42]
[1759778036239,0.7365547,236.38,236.29,14.74656747]
[1759778036639,0.7365547,236.38,236.14,59.2504]
[1759778036640,62.20733413,236.35,236.23,7.42]
[1759778036839,3.00783413,236.31,236.23,7.42]
[1759778037138,3.8068,236.28,236.23,7.42]
[1759778037338,3.8068,236.28,236.16,7.42]
[1759778037542,104.22,236.3,236.2,3.808]
[1759778037743,104.22,236.3,236.19,7.42]
[1759778038654,3.807,236.26,236.19,7.42]
[1759778038952,3.00783413,236.29,236.19,7.42]
[1759778039847,6.81443413,236.29,236.2,3.808]
[1759778040053,34.28,236.28,236.2,3.808]
[1759778040253,34.28,236.28,236.21,7.42]
[1759778040453,3.00783413,236.33,236.21,7.42]
[1759778040853,55.02,236.32,236.21,7.42]
[1759778041053,3.00783413,236.33,236.21,7.42]
[1759778041250,82.76,236.32,236.21,7.42]
[1759778041456,3.00783413,236.33,236.21,7.42]
[1759778041656,104.2,236.32,236.22,3.8076]
[1759778042046,3.00783413,236.33,236.22,3.8076]
[1759778042250,3.8064,236.3,236.21,7.42]
[1759778042451,104.2,236.29,236.21,7.42]
[1759778042854,104.2,236.28,236.21,7.42]
[1759778043658,104.2,236.28,236.21,11.2278]
[1759778044556,104.2,236.28,236.18,3.8083]
[1759778044856,104.2,236.28,236.17,7.42]
[1759778046656,3.8069,236.27,236.17,7.42]
[1759778048256,4.86505164,236.27,236.17,7.42]
[1759778048654,3.00783413,236.25,236.15,3.8087]
[1759778048855,27.46,236.24,236.16,7.42]
[1759778049060,27.46,236.24,236.17,3.8084]
[1759778049555,3.00783413,236.25,236.17,3.8084]
[1759778049754,6.81433413,236.3,236.19,11.2281]
[1759778049961,6.81433413,236.3,236.19,7.42]
[1759778050161,1.05814553,236.3,236.21,7.42]
[1759778050358,1.05814553,236.36,236.24,7.42]
[1759778050566,0.7365547,236.38,236.28,7.42]
[1759778050762,308.28,236.39,236.28,7.42]
[1759778051561,308.28,236.39,236.33,3.8057]
[1759778051762,308.28,236.39,236.33,11.2257]
[1759778052858,308.28,236.39,236.33,7.42]
[1759778054569,308.28,236.39,236.33,11.2257]
[1759778055065,308.28,236.39,236.33,7.42]
[1759778055960,308.28,236.39,236.31,3.8062]
[1759778056165,308.28,236.39,236.29,7.42]
[1759778056959,3.8051,236.38,236.29,7.42]
[1759778057162,104.18,236.37,236.29,7.42]
[1759778060469,104.18,236.37,236.29,11.2264]
[1759778061263,104.18,236.37,236.24,7.51]
[1759778061463,107.18783413,236.37,236.24,7.51]
[1759778061669,1.05779829,236.36,236.24,7.51]
[1759778062670,3.8059,236.34,236.25,3.8072]
[1759778063867,3.8059,236.34,236.26,3.8069]
[1759778066465,3.806,236.33,236.24,7.51]
[1759778066665,104.16,236.32,236.24,7.51]
[1759778067060,104.16,236.32,236.23,3.8074]
[1759778067261,3.8065,236.3,236.21,7.51]
[1759778068073,3.8067,236.29,236.21,7.51]
[1759778068670,3.8069,236.28,236.21,7.51]
[1759778068870,3.00783413,236.29,236.17,11.3184]
[1759778069366,3.807,236.27,236.17,7.51]
[1759778069569,104.16,236.26,236.17,7.51]
[1759778070177,104.16,236.26,236.2,3.808]
[1759778070872,3.00783413,236.29,236.2,3.808]
[1759778071074,104.16,236.26,236.2,3.808]
[1759778071269,104.16,236.26,236.17,7.51]
[1759778072579,104.16,236.26,236.2,3.808]
[1759778075273,3.8069,236.28,236.2,3.808]
[1759778075481,89.6,236.27,236.2,3.808]
[1759778077176,93.407,236.27,236.2,3.808]
[1759778077981,3.807,236.27,236.2,3.808]
[1759778078183,104.16,236.26,236.2,3.808]
[1759778079783,104.16,236.26,236.17,7.51]
[1759778080177,104.16,236.26,236.09,3.00783413]
[1759778080178,3.00783413,236.25,236.12,7.92]
[1759778080485,3.00783413,236.21,236.12,7.92]
[1759778080692,104.16,236.2,236.12,7.92]
[1759778081690,3.8083,236.19,236.13,3.8091]
[1759778082788,104.16,236.18,236.13,3.8091]
[1759778082985,104.16,236.18,236.14,7.92]
[1759778085595,104.16,236.18,236.13,3.8091]
[1759778086290,104.16,236.18,236.15,7.92]
[1759778086487,104.16,236.18,236.1,7.92]
[1759778086995,3.8077,236.22,236.1,7.92]
[1759778087196,24.68,236.21,236.1,7.92]
[1759778087387,24.68,236.21,236.15,3.8087]
[1759778088990,1.92746327,236.21,236.15,3.8087]
[1759778089189,104.16,236.2,236.15,3.8087]
[1759778089392,1.92746327,236.21,236.15,3.8087]
[1759778089599,104.16,236.2,236.15,3.8087]
[1759778091099,1.92746327,236.21,236.15,3.8087]
[1759778091299,104.16,236.2,236.15,11.1887]
[1759778091694,104.16,236.2,236.16,7.38]
[1759778091901,1.92746327,236.25,236.16,7.38]
[1759778092097,106.08746327,236.25,236.16,7.38]
[1759778092292,106.08746327,236.25,236.2,11.1879]
[1759778092596,104.16,236.25,236.17,7.38]
[1759778092798,104.16,236.25,236.21,3.8078]
[1759778093198,104.16,236.25,236.21,11.1878]
[1759778093695,104.16,236.25,236.21,7.38]
[1759778093899,106.08746327,236.25,236.18,3.8082]
[1759778094100,3.8074,236.24,236.16,7.38]
[1759778094300,3.8074,236.24,236.17,3.8083]
[1759778094502,104.16,236.25,236.16,7.38]
[1759778095601,104.16,236.25,236.2,11.1879]
[1759778096102,104.16,236.25,236.21,7.38]
[1759778100205,10.50251788,236.35,236.14,59.2511]
[1759778100408,1.92746327,236.32,236.22,7.38]
[1759778100705,1.92746327,236.32,236.23,7.38]
[1759778101500,1.92746327,236.32,236.24,3.8072]
[1759778101701,1.92746327,236.29,236.19,7.38]
[1759778102908,1.05810756,236.34,236.22,7.38]
[1759778103110,1.92746327,236.3,236.22,7.38]
[1759778104403,1.92746327,236.3,236.23,3.8075]
[1759778104805,1.92746327,236.3,236.22,7.38]
[1759778106306,5.73396327,236.3,236.22,11.1875]
[1759778107611,5.73396327,236.3,236.23,3.8074]
[1759778108107,1.92746327,236.3,236.24,3.8072]
[1759778108309,107.9061,236.32,236.24,3.8072]
[1759778108510,1.92746327,236.31,236.24,3.8072]
[1759778109913,1.92746327,236.31,236.25,7.38]
[1759778110407,1.92746327,236.31,236.27,11.1869]
[1759778110605,104.1,236.32,236.27,11.1869]
[1759778110803,1.92746327,236.33,236.27,3.8069]
[1759778111214,2.98535617,236.33,236.27,3.8069]
[1759778112108,2.98535617,236.33,236.26,7.38]
[1759778112109,2.98535617,236.33,236.28,3.8066]
[1759778112308,1.0578929,236.33,236.25,7.38]
[1759778112509,45.3,236.34,236.25,7.38]
[1759778114716,45.3,236.34,236.3,7.38]
[1759778116015,1.92746327,236.33,236.27,3.8068]
[1759778116221,45.3,236.34,236.27,3.8068]
[1759778116521,1.92746327,236.33,236.27,3.8068]
[1759778118622,1.92746327,236.33,236.28,11.4766]
[1759778119022,1.92746327,236.33,236.28,3.8066]
[1759778119213,1.92746327,236.33,236.28,11.4766]
[1759778119416,47.22746327,236.34,236.29,11.4764]
[1759778120320,47.22746327,236.34,236.31,3.8062]
[1759778122215,45.3,236.34,236.33,11.4759]
[1759778122421,0.73657809,236.38,236.32,7.67]
[1759778122724,0.73646118,236.42,236.37,3.8052]
[1759778123625,0.73646118,236.42,236.38,3.805]
[1759778124324,0.73646118,236.42,236.35,7.67]
[1759778125019,1.92746327,236.4,236.35,7.67]
[1759778125416,1.92746327,236.4,236.34,11.4757]
[1759778126620,1.92746327,236.37,236.29,7.67]
[1759778127726,5.73286327,236.37,236.3,3.8063]
[1759778128120,1.92746327,236.37,236.3,3.8063]
[1759778129628,1.92746327,236.34,236.29,7.67]
[1759778129827,1.92746327,236.34,236.27,15.03369449]
[1759778130228,1.92746327,236.31,236.27,22.70369449]
[1759778130423,1.92746327,236.31,236.27,7.67]
[1759778130628,1.92746327,236.31,236.18,61.16736327]
[1759778130629,1.92746327,236.31,236.19,7.67]
[1759778130829,5.73376327,236.31,236.23,7.67]
[1759778132131,3.8065,236.3,236.23,7.67]
[1759778140135,3.8065,236.3,236.23,11.4774]
[1759778140336,107.8265,236.3,236.23,11.4774]
[1759778140925,3.806,236.33,236.24,7.79]
[1759778141127,104.02,236.32,236.24,7.79]
[1759778141433,104.02,236.32,236.27,3.8067]
[1759778142033,1.92746327,236.34,236.28,7.79]
[1759778142233,5.73276327,236.37,236.29,7.79]
[1759778142438,60.76,236.36,236.29,7.79]
[1759778142838,108.53276327,236.37,236.29,7.79]
[1759778143040,1.05772388,236.36,236.29,7.79]
[1759778143539,1.05772388,236.36,236.29,11.5964]
[1759778143730,1.05772388,236.36,236.29,7.79]
[1759778143935,1.92746327,236.34,236.24,7.79]
[1759778144731,3.8062,236.32,236.24,7.79]
[1759778144937,4.86392388,236.32,236.24,7.79]
[1759778145132,107.8062,236.32,236.24,7.79]
[1759778146338,1.92746327,236.31,236.24,7.79]
[1759778147140,1.92746327,236.31,236.25,3.8072]
[1759778149141,107.8062,236.32,236.25,3.8072]
[1759778149941,104.0,236.32,236.24,7.79]
[1759778150242,1.05791175,236.31,236.24,7.79]
[1759778150538,3.8065,236.3,236.24,7.79]
[1759778150737,1.05791175,236.31,236.24,7.79]
[1759778151345,104.0,236.3,236.24,7.79]
[1759778151942,104.0,236.3,236.25,3.8071]
[1759778152143,104.0,236.3,236.26,7.21]
[1759778152443,104.0,236.3,236.2,3.00886003]
[1759778152643,104.0,236.3,236.21,7.21]
[1759778153542,104.0,236.3,236.23,3.8075]
[1759778153742,104.0,236.3,236.24,7.21]
[1759778155245,107.8064,236.3,236.24,7.21]
[1759778156146,3.8064,236.3,236.24,7.21]
[1759778156339,107.7864,236.3,236.24,7.21]
[1759778156643,3.00886003,236.34,236.24,11.0172]
[1759778156844,103.98,236.33,236.24,11.0172]
[1759778157044,1.05789618,236.32,236.24,11.0172]
[1759778157650,3.8062,236.31,236.24,11.0172]
[1759778157846,1.05789618,236.32,236.19,7.21]
[1759778158149,3.00886003,236.3,236.19,7.21]
[1759778159048,3.8071,236.26,236.19,7.21]
[1759778159352,103.98,236.25,236.19,7.21]
[1759778160244,103.98,236.25,236.19,11.018]
[1759778160845,103.98,236.26,236.19,11.018]
[1759778161645,106.98886003,236.26,236.14,7.21]
[1759778161844,1.05813555,236.25,236.14,7.21]
[1759778162548,3.808,236.21,236.14,11.0189]
[1759778162944,103.98,236.22,236.14,11.0189]
[1759778166549,107.7878,236.22,236.14,11.0189]
[1759778168644,3.00886003,236.21,236.11,11.0193]
[1759778169246,4.06725075,236.21,236.11,7.21]
[1759778169446,4.06725075,236.21,236.09,3.8098]
[1759778169847,4.06725075,236.21,236.07,30.9525674]
[1759778169848,3.8086,236.17,236.07,30.9525674]
[1759778171352,3.8086,236.17,236.08,3.8098]
[1759778172154,3.8088,236.15,236.07,30.9525674]
[1759778172350,65.22,236.14,236.07,23.7425674]
[1759778172656,3.8092,236.13,236.07,23.7425674]
[1759778173554,3.8092,236.13,236.05,3.8103]
[1759778175247,6.81806003,236.13,236.03,7.21]
[1759778176556,99.84,236.12,236.04,3.8106]
[1759778176945,103.98,236.11,236.03,7.21]
[1759778177146,103.98,236.11,236.05,3.8103]
[1759778177354,103.98,236.11,236.05,11.0203]
[1759778178155,103.98,236.11,236.06,3.8101]